[Event "Titled Tuesday Blitz April 12 Early 2022"]
[White "Wagner, Dinara"]
[Black "Ahmadzada, Ahmad"]
[WhiteFideId "24157570"]
[BlackFideId "13413007"]
[WhiteElo "2516"]
[BlackElo "2808"]
[Result "0-1"]
[Round "08"]
[TimeControl "180+1"]
[Date "2022.04.13"]
[WhiteClock "0:00:51"]
[BlackClock "0:00:02"]

1. d4 {[%clk 0:02:50]}  Nf6 {[%clk 0:02:59]} 2. c4 {[%clk 0:02:50]}  e6 {[%clk 0:02:59]} 3. Nf3 {[%clk 0:02:51]}  b6 {[%clk 0:02:59]} 4. a3 {[%clk 0:02:51]}  Bb7 {[%clk 0:02:59]} 5. Nc3 {[%clk 0:02:51]}  g6 {[%clk 0:02:59]} 6. d5 {[%clk 0:02:51]}  Bg7 {[%clk 0:02:58]} 7. e4 {[%clk 0:02:51]}  d6 {[%clk 0:02:57]} 8. Bd3 {[%clk 0:02:51]}  O-O {[%clk 0:02:55]} 9. O-O {[%clk 0:02:52]}  Nbd7 {[%clk 0:02:54]} 10. Bc2 {[%clk 0:02:52]}  a5 {[%clk 0:02:53]} 11. Rb1 {[%clk 0:02:50]}  Nh5 {[%clk 0:02:49]} 12. Bd2 {[%clk 0:02:46]}  e5 {[%clk 0:02:34]} 13. g3 {[%clk 0:02:35]}  h6 {[%clk 0:02:29]} 14. Nh4 {[%clk 0:02:33]}  Nhf6 {[%clk 0:02:25]} 15. Qe2 {[%clk 0:02:32]}  Nh7 {[%clk 0:02:11]} 16. b4 {[%clk 0:02:28]}  Qc8 {[%clk 0:01:47]} 17. Bd3 {[%clk 0:02:25]}  Ng5 {[%clk 0:01:27]} 18. Rfc1 {[%clk 0:02:23]}  Qd8 {[%clk 0:01:15]} 19. Nb5 {[%clk 0:02:22]}  Nh3+ {[%clk 0:01:12]} 20. Kh1 {[%clk 0:01:30]}  Nf4 {[%clk 0:01:12]} 21. gxf4 {[%clk 0:01:29]}  Qxh4 {[%clk 0:01:10]} 22. f5 {[%clk 0:01:27]}  axb4 {[%clk 0:00:44]} 23. axb4 {[%clk 0:01:23]}  gxf5 {[%clk 0:00:32]} 24. exf5 {[%clk 0:01:22]}  Kh8 {[%clk 0:00:23]} 25. Rg1 {[%clk 0:01:10]}  Nf6 {[%clk 0:00:22]} 26. f3 {[%clk 0:01:08]}  Rae8 {[%clk 0:00:12]} 27. Nxc7 {[%clk 0:01:08]}  Re7 {[%clk 0:00:12]} 28. Nb5 {[%clk 0:01:07]}  e4 {[%clk 0:00:13]} 29. fxe4 {[%clk 0:01:05]}  Nxe4 {[%clk 0:00:12]} 30. Bxe4 {[%clk 0:01:05]}  Rxe4 {[%clk 0:00:12]} 31. Qg2 {[%clk 0:01:05]}  Be5 {[%clk 0:00:07]} 32. Bxh6 {[%clk 0:01:00]}  Qxh6 {[%clk 0:00:05]} 33. Rbf1 {[%clk 0:00:57]}  Rg4 {[%clk 0:00:04]} 34. Qe2 {[%clk 0:00:55]}  Rh4 {[%clk 0:00:04]} 35. Rg2 {[%clk 0:00:55]}  Rg8 {[%clk 0:00:03]} 36. Rfg1 {[%clk 0:00:54]}  Rxg2 {[%clk 0:00:03]} 37. Rxg2 {[%clk 0:00:54]}  Bc8 {[%clk 0:00:03]} 38. Nxd6 {[%clk 0:00:53]}  Qxd6 {[%clk 0:00:03]} 39. c5 {[%clk 0:00:52]}  Qxd5 {[%clk 0:00:02]} 40. Qe1 {[%clk 0:00:51]}  Rxh2+ {[%clk 0:00:02]} 0-1


[Site "https://www.chess.com"]

[Event "Titled Tuesday Blitz April 12 Early 2022"]
[White "Fathy, Elameir"]
[Black "Csonka, Balazs"]
[WhiteFideId "10600396"]
[BlackFideId "742910"]
[WhiteElo "2311"]
[BlackElo "2404"]
[Result "0-1"]
[Round "08"]
[TimeControl "180+1"]
[Date "2022.04.13"]
[WhiteClock "0:00:03"]
[BlackClock "0:00:07"]

1. d4 {[%clk 0:03:00]}  e6 {[%clk 0:03:00]} 2. c4 {[%clk 0:02:53]}  d5 {[%clk 0:02:56]} 3. Nf3 {[%clk 0:02:53]}  Nf6 {[%clk 0:02:56]} 4. g3 {[%clk 0:02:53]}  dxc4 {[%clk 0:02:51]} 5. Bg2 {[%clk 0:02:54]}  Bd7 {[%clk 0:02:51]} 6. Ne5 {[%clk 0:02:50]}  Bc6 {[%clk 0:02:51]} 7. Nxc6 {[%clk 0:02:45]}  Nxc6 {[%clk 0:02:52]} 8. e3 {[%clk 0:02:39]}  Qd7 {[%clk 0:02:52]} 9. O-O {[%clk 0:02:08]}  O-O-O {[%clk 0:02:49]} 10. Qa4 {[%clk 0:02:01]}  Nd5 {[%clk 0:02:48]} 11. Qxc4 {[%clk 0:01:58]}  h5 {[%clk 0:02:48]} 12. a4 {[%clk 0:01:50]}  Bb4 {[%clk 0:02:30]} 13. Bd2 {[%clk 0:01:47]}  Na5 {[%clk 0:02:18]} 14. Qc2 {[%clk 0:01:37]}  Bxd2 {[%clk 0:01:40]} 15. Nxd2 {[%clk 0:01:36]}  h4 {[%clk 0:01:41]} 16. b4 {[%clk 0:01:01]}  Nxb4 {[%clk 0:01:19]} 17. Qc3 {[%clk 0:00:53]}  Nac6 {[%clk 0:01:07]} 18. Rab1 {[%clk 0:00:48]}  hxg3 {[%clk 0:00:59]} 19. Rxb4 {[%clk 0:00:31]}  gxh2+ {[%clk 0:00:58]} 20. Kh1 {[%clk 0:00:31]}  Nxb4 {[%clk 0:00:58]} 21. Qxb4 {[%clk 0:00:32]}  c6 {[%clk 0:00:58]} 22. a5 {[%clk 0:00:28]}  e5 {[%clk 0:00:45]} 23. a6 {[%clk 0:00:25]}  exd4 {[%clk 0:00:41]} 24. Rb1 {[%clk 0:00:23]}  b6 {[%clk 0:00:39]} 25. Nc4 {[%clk 0:00:20]}  dxe3 {[%clk 0:00:30]} 26. Nxe3 {[%clk 0:00:03]}  Rh6 {[%clk 0:00:22]} 27. Rc1 {[%clk 0:00:03]}  Qd2 {[%clk 0:00:19]} 28. Qg4+ {[%clk 0:00:03]}  Kb8 {[%clk 0:00:17]} 29. Qf4+ {[%clk 0:00:03]}  Qd6 {[%clk 0:00:14]} 30. Qxf7 {[%clk 0:00:02]}  Qc7 {[%clk 0:00:13]} 31. Qxc7+ {[%clk 0:00:02]}  Kxc7 {[%clk 0:00:13]} 32. Nd5+ {[%clk 0:00:02]}  Kd6 {[%clk 0:00:08]} 33. Nb4 {[%clk 0:00:01]}  c5 {[%clk 0:00:08]} 34. Rd1+ {[%clk 0:00:02]}  Kc7 {[%clk 0:00:08]} 35. Nd5+ {[%clk 0:00:03]}  Kb8 {[%clk 0:00:08]} 36. Re1 {[%clk 0:00:02]}  Rhd6 {[%clk 0:00:08]} 37. Nc3 {[%clk 0:00:01]}  c4 {[%clk 0:00:07]} 38. Re7 {[%clk 0:00:01]}  R6d7 {[%clk 0:00:07]} 39. Rxd7 {[%clk 0:00:01]}  Rxd7 {[%clk 0:00:07]} 40. Kxh2 {[%clk 0:00:02]}  Rd3 {[%clk 0:00:08]} 41. Nd5 {[%clk 0:00:02]}  c3 {[%clk 0:00:07]} 42. Ne7 {[%clk 0:00:02]}  c2 {[%clk 0:00:07]} 43. Nc6+ {[%clk 0:00:03]}  Kc7 {[%clk 0:00:07]} 44. Nxa7 {[%clk 0:00:03]}  c1=Q {[%clk 0:00:05]} 45. Nb5+ {[%clk 0:00:03]}  Kd7 {[%clk 0:00:06]} 46. a7 {[%clk 0:00:04]}  Qf4+ {[%clk 0:00:05]} 47. Kg1 {[%clk 0:00:02]}  Rd1+ {[%clk 0:00:06]} 48. Bf1 {[%clk 0:00:02]}  Qg4+ {[%clk 0:00:06]} 49. Kh2 {[%clk 0:00:03]}  Rxf1 {[%clk 0:00:05]} 50. a8=Q {[%clk 0:00:02]}  Qh4+ {[%clk 0:00:06]} 51. Kg2 {[%clk 0:00:02]}  Qh1+ {[%clk 0:00:06]} 52. Kg3 {[%clk 0:00:03]}  Qxa8 {[%clk 0:00:07]} 0-1


[Site "https://www.chess.com"]

[Event "Titled Tuesday Blitz April 12 Early 2022"]
[White "Gaehwiler, Gabriel"]
[Black "Baches Garcia, Guillermo"]
[WhiteFideId "1314530"]
[BlackFideId "2209764"]
[WhiteElo "2383"]
[BlackElo "2491"]
[Result "0-1"]
[Round "08"]
[TimeControl "180+1"]
[Date "2022.04.13"]
[WhiteClock "0:02:12"]
[BlackClock "0:00:09"]

1. Nf3 {[%clk 0:03:00]}  d5 {[%clk 0:02:59]} 2. e3 {[%clk 0:03:01]}  Nf6 {[%clk 0:02:57]} 3. c4 {[%clk 0:03:02]}  e6 {[%clk 0:02:57]} 4. Be2 {[%clk 0:03:03]}  c5 {[%clk 0:02:55]} 5. d4 {[%clk 0:03:04]}  Nc6 {[%clk 0:02:52]} 6. O-O {[%clk 0:03:04]}  cxd4 {[%clk 0:02:49]} 7. exd4 {[%clk 0:03:05]}  dxc4 {[%clk 0:02:46]} 8. Bxc4 {[%clk 0:03:06]}  Be7 {[%clk 0:02:47]} 9. Re1 {[%clk 0:03:06]}  O-O {[%clk 0:02:46]} 10. Nc3 {[%clk 0:03:07]}  b6 {[%clk 0:02:47]} 11. Bd3 {[%clk 0:03:07]}  Bb7 {[%clk 0:02:46]} 12. Bg5 {[%clk 0:03:08]}  Rc8 {[%clk 0:02:44]} 13. Rc1 {[%clk 0:03:08]}  Re8 {[%clk 0:02:43]} 14. Bb1 {[%clk 0:03:07]}  Nd5 {[%clk 0:02:35]} 15. Qd3 {[%clk 0:03:06]}  g6 {[%clk 0:02:35]} 16. Bh6 {[%clk 0:03:06]}  Bf8 {[%clk 0:02:27]} 17. Bg5 {[%clk 0:03:05]}  Be7 {[%clk 0:02:27]} 18. Bd2 {[%clk 0:03:05]}  Bf6 {[%clk 0:02:17]} 19. Rcd1 {[%clk 0:03:05]}  Bg7 {[%clk 0:02:05]} 20. a3 {[%clk 0:03:05]}  Nce7 {[%clk 0:02:00]} 21. Ne4 {[%clk 0:03:03]}  Nf5 {[%clk 0:01:43]} 22. Ne5 {[%clk 0:03:03]}  h6 {[%clk 0:01:16]} 23. h3 {[%clk 0:03:02]}  Nf6 {[%clk 0:01:08]} 24. Nc3 {[%clk 0:03:01]}  Qxd4 {[%clk 0:01:04]} 25. Qe2 {[%clk 0:03:01]}  Nd5 {[%clk 0:00:45]} 26. Nf3 {[%clk 0:03:00]}  Nxc3 {[%clk 0:00:39]} 27. Bxc3 {[%clk 0:03:00]}  Bxf3 {[%clk 0:00:29]} 28. Qxf3 {[%clk 0:03:00]}  Qc5 {[%clk 0:00:25]} 29. Bxg7 {[%clk 0:03:00]}  Kxg7 {[%clk 0:00:25]} 30. Qd3 {[%clk 0:03:00]}  Rcd8 {[%clk 0:00:19]} 31. Qxd8 {[%clk 0:02:59]}  Rxd8 {[%clk 0:00:19]} 32. Rxd8 {[%clk 0:02:59]}  h5 {[%clk 0:00:19]} 33. Rdd1 {[%clk 0:02:59]}  Qb5 {[%clk 0:00:18]} 34. Bxf5 {[%clk 0:02:59]}  exf5 {[%clk 0:00:18]} 35. Rd2 {[%clk 0:02:59]}  Qb3 {[%clk 0:00:18]} 36. Red1 {[%clk 0:03:00]}  a5 {[%clk 0:00:18]} 37. Rc1 {[%clk 0:02:58]}  b5 {[%clk 0:00:18]} 38. Rc3 {[%clk 0:02:58]}  Qa2 {[%clk 0:00:17]} 39. Rcd3 {[%clk 0:02:58]}  b4 {[%clk 0:00:16]} 40. axb4 {[%clk 0:02:58]}  axb4 {[%clk 0:00:17]} 41. b3 {[%clk 0:02:58]}  Qb1+ {[%clk 0:00:15]} 42. Rd1 {[%clk 0:02:58]}  Qb2 {[%clk 0:00:15]} 43. R1d2 {[%clk 0:02:58]}  Qb1+ {[%clk 0:00:15]} 44. Kh2 {[%clk 0:02:59]}  Qe1 {[%clk 0:00:14]} 45. g3 {[%clk 0:02:55]}  h4 {[%clk 0:00:14]} 46. gxh4 {[%clk 0:02:54]}  Qe5+ {[%clk 0:00:13]} 47. Kg1 {[%clk 0:02:54]}  Qe1+ {[%clk 0:00:12]} 48. Kg2 {[%clk 0:02:54]}  Qe4+ {[%clk 0:00:12]} 49. Kg1 {[%clk 0:02:53]}  Qe1+ {[%clk 0:00:12]} 50. Kh2 {[%clk 0:02:52]}  Qe5+ {[%clk 0:00:12]} 51. Rg3 {[%clk 0:02:52]}  f4 {[%clk 0:00:11]} 52. Rf3 {[%clk 0:02:45]}  f6 {[%clk 0:00:06]} 53. Rdd3 {[%clk 0:02:35]}  g5 {[%clk 0:00:06]} 54. Kg2 {[%clk 0:02:33]}  Kg6 {[%clk 0:00:05]} 55. Kg1 {[%clk 0:02:33]}  Qe4 {[%clk 0:00:05]} 56. Kf1 {[%clk 0:02:33]}  Qe5 {[%clk 0:00:05]} 57. Kg2 {[%clk 0:02:30]}  Qe4 {[%clk 0:00:06]} 58. Kf1 {[%clk 0:02:30]}  Qe5 {[%clk 0:00:06]} 59. Rd1 {[%clk 0:02:24]}  Qe4 {[%clk 0:00:06]} 60. Kg2 {[%clk 0:02:20]}  Kh5 {[%clk 0:00:06]} 61. hxg5 {[%clk 0:02:19]}  fxg5 {[%clk 0:00:06]} 62. Rh1 {[%clk 0:02:13]}  g4 {[%clk 0:00:05]} 63. hxg4+ {[%clk 0:02:13]}  Kxg4 {[%clk 0:00:06]} 64. Rh3 {[%clk 0:02:14]}  Qd5 {[%clk 0:00:05]} 65. Kg1 {[%clk 0:02:05]}  Qxf3 {[%clk 0:00:05]} 66. Rxf3 {[%clk 0:02:06]}  Kxf3 {[%clk 0:00:05]} 67. Kf1 {[%clk 0:02:07]}  Ke4 {[%clk 0:00:06]} 68. Ke1 {[%clk 0:02:07]}  Kd3 {[%clk 0:00:05]} 69. Kd1 {[%clk 0:02:05]}  Kc3 {[%clk 0:00:05]} 70. Ke2 {[%clk 0:02:05]}  Kxb3 {[%clk 0:00:05]} 71. Kf3 {[%clk 0:02:06]}  Kc2 {[%clk 0:00:06]} 72. Kxf4 {[%clk 0:02:07]}  b3 {[%clk 0:00:06]} 73. Ke5 {[%clk 0:02:08]}  b2 {[%clk 0:00:07]} 74. f3 {[%clk 0:02:09]}  b1=Q {[%clk 0:00:07]} 75. f4 {[%clk 0:02:10]}  Qb7 {[%clk 0:00:08]} 76. f5 {[%clk 0:02:11]}  Qg7+ {[%clk 0:00:08]} 77. Ke6 {[%clk 0:02:12]}  Qf8 {[%clk 0:00:08]} 78. f6 {[%clk 0:02:12]}  Kd3 {[%clk 0:00:09]} 0-1


[Site "https://www.chess.com"]

[Event "Titled Tuesday Blitz April 12 Early 2022"]
[White "Golubeva, Oksana"]
[Black "Yang, Kaiqi"]
[WhiteFideId "4170164"]
[BlackFideId "8604398"]
[WhiteElo "2162"]
[BlackElo "2373"]
[Result "0-1"]
[Round "08"]
[TimeControl "180+1"]
[Date "2022.04.13"]
[WhiteClock "0:00:14"]
[BlackClock "0:00:18"]

1. Nf3 {[%clk 0:02:52]}  g6 {[%clk 0:02:59]} 2. e3 {[%clk 0:02:51]}  Bg7 {[%clk 0:02:59]} 3. d4 {[%clk 0:02:51]}  f5 {[%clk 0:02:59]} 4. b3 {[%clk 0:02:51]}  Nf6 {[%clk 0:02:59]} 5. Bb2 {[%clk 0:02:51]}  d6 {[%clk 0:02:58]} 6. Nbd2 {[%clk 0:02:51]}  O-O {[%clk 0:02:58]} 7. a4 {[%clk 0:02:51]}  a5 {[%clk 0:02:56]} 8. Nc4 {[%clk 0:02:51]}  Nc6 {[%clk 0:02:45]} 9. Be2 {[%clk 0:02:45]}  Ne4 {[%clk 0:02:35]} 10. O-O {[%clk 0:02:43]}  h6 {[%clk 0:02:31]} 11. Bd3 {[%clk 0:02:25]}  Nb4 {[%clk 0:02:18]} 12. Be2 {[%clk 0:02:24]}  e6 {[%clk 0:02:12]} 13. Nfd2 {[%clk 0:02:20]}  Nf6 {[%clk 0:02:07]} 14. f3 {[%clk 0:02:17]}  Qe7 {[%clk 0:01:57]} 15. e4 {[%clk 0:02:11]}  Kh7 {[%clk 0:01:46]} 16. c3 {[%clk 0:01:51]}  Nc6 {[%clk 0:01:43]} 17. Bd3 {[%clk 0:01:49]}  f4 {[%clk 0:01:33]} 18. e5 {[%clk 0:01:46]}  dxe5 {[%clk 0:01:33]} 19. Qc2 {[%clk 0:01:43]}  Qf7 {[%clk 0:01:24]} 20. dxe5 {[%clk 0:01:31]}  Nd5 {[%clk 0:01:23]} 21. Rae1 {[%clk 0:01:29]}  Bd7 {[%clk 0:01:12]} 22. Re2 {[%clk 0:01:12]}  Be8 {[%clk 0:00:58]} 23. Rfe1 {[%clk 0:01:10]}  Rd8 {[%clk 0:00:58]} 24. Ba3 {[%clk 0:00:59]}  Rg8 {[%clk 0:00:55]} 25. h4 {[%clk 0:00:43]}  Kh8 {[%clk 0:00:54]} 26. Bb2 {[%clk 0:00:37]}  Ndb4 {[%clk 0:00:47]} 27. Bxg6 {[%clk 0:00:28]}  Nxc2 {[%clk 0:00:42]} 28. Bxf7 {[%clk 0:00:27]}  Bxf7 {[%clk 0:00:43]} 29. Rc1 {[%clk 0:00:24]}  Ne3 {[%clk 0:00:43]} 30. Nxe3 {[%clk 0:00:20]}  fxe3 {[%clk 0:00:44]} 31. Nc4 {[%clk 0:00:20]}  Nxe5 {[%clk 0:00:35]} 32. Nxa5 {[%clk 0:00:19]}  Nd3 {[%clk 0:00:31]} 33. Rcc2 {[%clk 0:00:16]}  Nxb2 {[%clk 0:00:31]} 34. Rxb2 {[%clk 0:00:17]}  Bxc3 {[%clk 0:00:31]} 35. Rbc2 {[%clk 0:00:17]}  Rd1+ {[%clk 0:00:28]} 36. Kh2 {[%clk 0:00:16]}  Be5+ {[%clk 0:00:20]} 37. g3 {[%clk 0:00:16]}  Bxg3+ {[%clk 0:00:20]} 38. Kg2 {[%clk 0:00:16]}  Be5+ {[%clk 0:00:19]} 39. Kh3 {[%clk 0:00:14]}  Rg3+ {[%clk 0:00:18]} 40. Kh2 {[%clk 0:00:14]}  Rg7+ {[%clk 0:00:18]} 41. Kh3 {[%clk 0:00:14]}  Rh1+ {[%clk 0:00:18]} 42. Rh2 {[%clk 0:00:14]}  Rg3# {[%clk 0:00:18]} 0-1


[Site "https://www.chess.com"]

[Event "Titled Tuesday Blitz April 12 Early 2022"]
[White "Gunina, Valentina"]
[Black "Sychev, Klementy"]
[WhiteFideId "4167570"]
[BlackFideId "4114060"]
[WhiteElo "2381"]
[BlackElo "2564"]
[Result "0-1"]
[Round "08"]
[TimeControl "180+1"]
[Date "2022.04.12"]
[WhiteClock "0:00:14"]
[BlackClock "0:00:05"]

1. d4 {[%clk 0:03:00]}  f5 {[%clk 0:02:55]} 2. c4 {[%clk 0:03:01]}  Nf6 {[%clk 0:02:53]} 3. Nf3 {[%clk 0:03:01]}  g6 {[%clk 0:02:53]} 4. g3 {[%clk 0:03:01]}  Bg7 {[%clk 0:02:53]} 5. Bg2 {[%clk 0:03:01]}  O-O {[%clk 0:02:54]} 6. O-O {[%clk 0:03:02]}  d6 {[%clk 0:02:55]} 7. Nc3 {[%clk 0:03:02]}  Nc6 {[%clk 0:02:56]} 8. d5 {[%clk 0:03:02]}  Ne5 {[%clk 0:02:56]} 9. Nxe5 {[%clk 0:02:55]}  dxe5 {[%clk 0:02:57]} 10. e4 {[%clk 0:02:55]}  f4 {[%clk 0:02:57]} 11. gxf4 {[%clk 0:02:55]}  exf4 {[%clk 0:02:57]} 12. Bxf4 {[%clk 0:02:55]}  Nxe4 {[%clk 0:02:52]} 13. Be3 {[%clk 0:02:41]}  Nd6 {[%clk 0:02:44]} 14. Qe2 {[%clk 0:02:23]}  Nf5 {[%clk 0:02:41]} 15. Rae1 {[%clk 0:02:21]}  Nh4 {[%clk 0:02:24]} 16. Bg5 {[%clk 0:02:12]}  Nxg2 {[%clk 0:02:24]} 17. Kxg2 {[%clk 0:02:13]}  Qd7 {[%clk 0:02:23]} 18. Qe6+ {[%clk 0:01:44]}  Qxe6 {[%clk 0:02:21]} 19. dxe6 {[%clk 0:01:44]}  c6 {[%clk 0:02:21]} 20. Re3 {[%clk 0:01:37]}  h6 {[%clk 0:02:13]} 21. Bh4 {[%clk 0:01:37]}  g5 {[%clk 0:02:11]} 22. Bg3 {[%clk 0:01:38]}  b5 {[%clk 0:02:08]} 23. cxb5 {[%clk 0:01:09]}  Bb7 {[%clk 0:02:07]} 24. f3 {[%clk 0:00:51]}  Rad8 {[%clk 0:02:04]} 25. Be5 {[%clk 0:00:47]}  Rd2+ {[%clk 0:01:46]} 26. Rf2 {[%clk 0:00:47]}  Rxf2+ {[%clk 0:01:45]} 27. Kxf2 {[%clk 0:00:47]}  Bxe5 {[%clk 0:01:40]} 28. Rxe5 {[%clk 0:00:47]}  cxb5 {[%clk 0:01:40]} 29. Nd5 {[%clk 0:00:44]}  Kg7 {[%clk 0:01:31]} 30. f4 {[%clk 0:00:30]}  Bxd5 {[%clk 0:00:53]} 31. Rxd5 {[%clk 0:00:30]}  Rxf4+ {[%clk 0:00:54]} 32. Kg3 {[%clk 0:00:31]}  Rb4 {[%clk 0:00:53]} 33. Rf5 {[%clk 0:00:19]}  Rxb2 {[%clk 0:00:47]} 34. Rf7+ {[%clk 0:00:20]}  Kg6 {[%clk 0:00:46]} 35. Rxe7 {[%clk 0:00:20]}  Rxa2 {[%clk 0:00:45]} 36. Rb7 {[%clk 0:00:21]}  a6 {[%clk 0:00:26]} 37. Rb6 {[%clk 0:00:20]}  Kf6 {[%clk 0:00:20]} 38. h4 {[%clk 0:00:18]}  Ra4 {[%clk 0:00:15]} 39. h5 {[%clk 0:00:15]}  Re4 {[%clk 0:00:07]} 40. Rxa6 {[%clk 0:00:14]}  Rxe6 {[%clk 0:00:07]} 41. Ra7 {[%clk 0:00:15]}  Rb6 {[%clk 0:00:07]} 42. Rh7 {[%clk 0:00:15]}  Ke5 {[%clk 0:00:06]} 43. Re7+ {[%clk 0:00:15]}  Kd4 {[%clk 0:00:06]} 44. Rd7+ {[%clk 0:00:15]}  Kc4 {[%clk 0:00:06]} 45. Rc7+ {[%clk 0:00:15]}  Kd5 {[%clk 0:00:05]} 46. Rd7+ {[%clk 0:00:16]}  Kc5 {[%clk 0:00:04]} 47. Rc7+ {[%clk 0:00:16]}  Kd4 {[%clk 0:00:05]} 48. Rd7+ {[%clk 0:00:16]}  Ke5 {[%clk 0:00:05]} 49. Re7+ {[%clk 0:00:16]}  Kd5 {[%clk 0:00:05]} 50. Rd7+ {[%clk 0:00:16]}  Kc6 {[%clk 0:00:03]} 51. Rh7 {[%clk 0:00:16]}  Kc5 {[%clk 0:00:04]} 52. Rc7+ {[%clk 0:00:16]}  Kb4 {[%clk 0:00:03]} 53. Rh7 {[%clk 0:00:16]}  Kb3 {[%clk 0:00:02]} 54. Kf3 {[%clk 0:00:15]}  b4 {[%clk 0:00:02]} 55. Ke4 {[%clk 0:00:15]}  Kb2 {[%clk 0:00:02]} 56. Kd3 {[%clk 0:00:15]}  b3 {[%clk 0:00:03]} 57. Kd2 {[%clk 0:00:13]}  Rd6+ {[%clk 0:00:03]} 58. Ke2 {[%clk 0:00:13]}  Kc1 {[%clk 0:00:04]} 59. Rc7+ {[%clk 0:00:13]}  Kb1 {[%clk 0:00:04]} 60. Rb7 {[%clk 0:00:14]}  b2 {[%clk 0:00:04]} 61. Kf2 {[%clk 0:00:14]}  Ra6 {[%clk 0:00:04]} 62. Ke2 {[%clk 0:00:14]}  Ka2 {[%clk 0:00:05]} 0-1


[Site "https://www.chess.com"]

[Event "Titled Tuesday Blitz April 12 Early 2022"]
[White "Hansen, Eric"]
[Black "Ljukin, Sergei"]
[WhiteFideId "2606771"]
[BlackFideId "14102200"]
[WhiteElo "2830"]
[BlackElo "2528"]
[Result "1-0"]
[Round "08"]
[TimeControl "180+1"]
[Date "2022.04.13"]
[WhiteClock "0:02:27"]
[BlackClock "0:01:01"]

1. e4 {[%clk 0:03:00]}  e6 {[%clk 0:03:00]} 2. d4 {[%clk 0:03:01]}  d5 {[%clk 0:03:00]} 3. Nc3 {[%clk 0:03:02]}  Bb4 {[%clk 0:03:00]} 4. e5 {[%clk 0:03:01]}  Ne7 {[%clk 0:03:00]} 5. a3 {[%clk 0:03:01]}  Bxc3+ {[%clk 0:03:00]} 6. bxc3 {[%clk 0:03:02]}  c5 {[%clk 0:03:01]} 7. Qg4 {[%clk 0:03:02]}  Qc7 {[%clk 0:03:01]} 8. Bd2 {[%clk 0:03:01]}  O-O {[%clk 0:02:50]} 9. Bd3 {[%clk 0:03:01]}  c4 {[%clk 0:02:48]} 10. Be2 {[%clk 0:03:00]}  Bd7 {[%clk 0:02:34]} 11. h4 {[%clk 0:03:00]}  Ba4 {[%clk 0:02:31]} 12. Rc1 {[%clk 0:02:56]}  f5 {[%clk 0:02:12]} 13. Qg3 {[%clk 0:02:54]}  Qb6 {[%clk 0:02:03]} 14. Nh3 {[%clk 0:02:52]}  Nd7 {[%clk 0:01:53]} 15. Nf4 {[%clk 0:02:50]}  Rac8 {[%clk 0:01:35]} 16. Qg5 {[%clk 0:02:40]}  Rce8 {[%clk 0:01:28]} 17. Bh5 {[%clk 0:02:40]}  g6 {[%clk 0:01:16]} 18. Bd1 {[%clk 0:02:40]}  Kg7 {[%clk 0:01:16]} 19. Rh3 {[%clk 0:02:29]}  Ng8 {[%clk 0:01:03]} 20. h5 {[%clk 0:02:27]}  Qd8 {[%clk 0:01:01]} 21. Qxd8 {[%clk 0:02:27]} 1-0


[Site "https://www.chess.com"]